lending/lending_fUSD_20260124
["ID","MTS","AMOUNT","RATE_DAILY","PERIOD"]
[403219417,1769269817606,-266.55444611,0.00011475,2]
[403219418,1769269820007,-414.43298499,0.00011475,2]
[403219422,1769269824028,-189.16004445,0.00011475,2]
[403219423,1769269825979,291.18127549,0.000226,120]
[403219424,1769269826674,-294.68776891,0.00011475,2]
[403219425,1769269831610,-244.08708953,0.00011475,2]
[403219428,1769269832401,-41310.63339224,0.00011475,2]
[403219429,1769269832461,-620.98453335,0.00011475,2]
[403219430,1769269832476,-150282.45402005,0.00011475,2]
[403219432,1769269832807,-1410.1452036,0.00011475,2]
[403219433,1769269834393,-161.94720577,0.00011475,2]
[403219434,1769269835404,-300.66926553,0.00011475,2]
[403219485,1769269839045,-17757.60000013,0.00011475,2]
[403219502,1769269839204,-1889.83264085,0.00011475,2]
[403219505,1769269839217,-2434.24970126,0.00011475,2]
[403219510,1769269839257,-751.21374522,0.00011475,2]
[403219512,1769269839268,-500.78571235,0.00011475,2]
[403219514,1769269839279,-2025.51270032,0.00011475,2]
[403219525,1769269839584,-205.31223109,0.00011475,2]
[403219542,1769269840328,-418.45435782,0.00011475,2]
[403219543,1769269840340,-679776.18295643,0.00011475,2]
[403219544,1769269840350,-193.71973461,0.00011574,2]
[403219545,1769269840361,-879.17417159,0.00011574,2]
[403219546,1769269840370,-879.17417159,0.00011574,2]
[403219547,1769269840379,-879.17417159,0.00011574,2]
[403219548,1769269840388,-879.17417159,0.00011574,2]
[403219549,1769269840398,-879.17417159,0.00011574,2]
[403219550,1769269840407,-879.17417159,0.00011574,2]
[403219551,1769269840420,-879.17417159,0.00011574,2]
[403219552,1769269840430,-879.17417159,0.00011574,2]
[403219553,1769269840439,-879.17417159,0.00011574,2]
[403219554,1769269840448,-879.17417159,0.00011574,2]
[403219555,1769269840458,-879.17417159,0.00011574,2]
[403219556,1769269840467,-879.17417159,0.00011574,2]
[403219557,1769269840476,-879.17417159,0.00011574,2]
[403219558,1769269840485,-879.17417159,0.00011574,2]
[403219559,1769269840495,-879.17417159,0.00011574,2]
[403219560,1769269840504,-879.17417159,0.00011574,2]
[403219561,1769269840513,-879.17417159,0.00011574,2]
[403219562,1769269840523,-879.17417159,0.00011574,2]
[403219563,1769269840532,-879.17417159,0.00011574,2]
[403219564,1769269840541,-879.17417159,0.00011574,2]
[403219565,1769269840551,-879.17417159,0.00011574,2]
[403219566,1769269840560,-879.17417159,0.00011574,2]
[403219567,1769269840569,-879.17417159,0.00011574,2]
[403219568,1769269840578,-879.17417159,0.00011574,2]
[403219569,1769269840587,-879.17417159,0.00011574,2]
[403219570,1769269840596,-879.17417159,0.00011574,2]
[403219571,1769269840605,-879.17417159,0.00011574,2]
[403219572,1769269840616,-879.17417159,0.00011574,2]
[403219573,1769269840626,-879.17417159,0.00011574,2]
[403219574,1769269840636,-879.17417159,0.00011574,2]
[403219575,1769269840646,-879.17417159,0.00011574,2]
[403219576,1769269840655,-879.17417159,0.00011574,2]
[403219577,1769269840664,-1069.26588437,0.00011574,2]
[403219578,1769269840673,-1069.26588437,0.00011574,2]
[403219579,1769269840683,-1069.26588437,0.00011574,2]
[403219580,1769269840693,-1069.26588437,0.00011574,2]
[403219581,1769269840702,-1069.26588437,0.00011574,2]
[403219582,1769269840712,-1069.26588437,0.00011574,2]
[403219583,1769269840721,-1069.26588437,0.00011574,2]
[403219584,1769269840730,-1069.26588437,0.00011574,2]
[403219585,1769269840739,-1069.26588437,0.00011574,2]
[403219586,1769269840749,-1069.26588437,0.00011574,2]
[403219588,1769269840758,-1069.26588437,0.00011574,2]
[403219590,1769269840768,-1069.26588437,0.00011574,2]
[403219591,1769269840777,-1069.26588437,0.00011574,2]
[403219592,1769269840786,-1069.26588437,0.00011574,2]
[403219593,1769269840795,-1069.26588437,0.00011574,2]
[403219594,1769269840804,-1069.26588437,0.00011574,2]
[403219595,1769269840814,-1069.26588437,0.00011574,2]
[403219597,1769269840823,-1069.26588437,0.00011574,2]
[403219598,1769269840832,-1069.26588437,0.00011574,2]
[403219599,1769269840842,-1069.26588437,0.00011574,2]
[403219600,1769269840851,-1069.26588437,0.00011574,2]
[403219601,1769269840861,-1069.26588437,0.00011574,2]
[403219602,1769269840871,-1069.26588437,0.00011574,2]
[403219603,1769269840880,-1069.26588437,0.00011574,2]
[403219604,1769269840891,-1069.26588437,0.00011574,2]
[403219605,1769269840903,-1069.26588437,0.00011574,2]
[403219606,1769269840913,-1069.26588437,0.00011574,2]
[403219607,1769269840923,-1069.26588437,0.00011574,2]
[403219608,1769269840934,-1069.26588437,0.00011574,2]
[403219609,1769269840943,-1069.26588437,0.00011574,2]
[403219610,1769269840955,-1069.26588437,0.00011574,2]
[403219611,1769269840964,-359.49841648,0.00011574,2]
[403219612,1769269840974,-481.16964826,0.00011574,2]
[403219613,1769269840983,-179.4756636,0.00011574,2]
[403219614,1769269840992,-500.0,0.00011574,2]
[403219615,1769269841002,-500.0,0.00011574,2]
[403219616,1769269841021,-500.0,0.00011574,2]
[403219617,1769269841031,-164.89558838,0.00011574,2]
[403219618,1769269841041,-1000.0,0.00011574,2]
[403219619,1769269841051,-245.0,0.00011574,2]
[403219620,1769269841061,-924.01,0.00011574,2]
[403219621,1769269841071,-195.0,0.00011574,2]
[403219622,1769269841080,-1000.0,0.00011575,2]
[403219623,1769269841090,-195.0,0.00011575,2]
[403219624,1769269841100,-250.0,0.00011575,2]
[403219625,1769269841110,-183.95516542,0.00011575,2]
[403219626,1769269841120,-3252.78090067,0.00011575,2]
[403219627,1769269841130,-3149.27560019,0.00011575,2]
[403219628,1769269841139,-377.94059275,0.00011575,2]
[403219629,1769269841149,-1278.77990514,0.00011575,2]
[403219630,1769269841159,-9999.99,0.0001165,2]
[403219631,1769269841168,-9454.21,0.0001165,2]
[403219632,1769269841179,-1468.61,0.0001165,2]
[403219633,1769269841189,-5476.37,0.00011833,2]
[403219634,1769269841199,-150.02261735,0.00011833,2]
[403219635,1769269841209,-924.01,0.00011848,2]
[403219636,1769269841219,-191.0,0.00011873,2]
[403219637,1769269841229,-924.01,0.00012122,2]
[403219638,1769269841239,-4999.99,0.00012123,2]
[403219639,1769269841251,-150.99,0.00012123,2]
[403219640,1769269841262,-150.99,0.00012123,2]
[403219641,1769269841271,-2976.33,0.00012123,2]
[403219642,1769269841281,-9770.75467923,0.00012189,2]
[403219643,1769269841290,-489.86219045,0.00012393,2]
[403219644,1769269841300,-924.01,0.00012396,2]
[403219645,1769269841309,-235.26578218,0.00012451,2]
[403219646,1769269841318,-192.72733713,0.00012466,2]
[403219647,1769269841327,-255.0,0.00012639,2]
[403219648,1769269841337,-2941.14,0.00012665,2]
[403219649,1769269841346,-924.01,0.0001267,2]
[403219650,1769269841356,-1680.0,0.0001273,2]
[403219651,1769269841365,-250.0,0.00012731,2]
[403219652,1769269841375,-195.0,0.00012731,2]
[403219653,1769269841384,-300.0,0.00012731,2]
[403219654,1769269841394,-195.0,0.00012732,2]
[403219655,1769269841403,-250.0,0.00012732,2]
[403219656,1769269841412,-300.0,0.00012732,2]
[403219657,1769269841421,-300.0,0.00012732,2]
[403219658,1769269841431,-1000.0,0.00012739,2]
[403219659,1769269841440,-9770.75467923,0.00012903,2]
[403219660,1769269841449,-924.01,0.00012944,2]
[403219661,1769269841459,-924.01,0.00013218,2]
[403219662,1769269841468,-489.86219045,0.00013311,2]
[403219663,1769269841478,-166.66,0.00013434,2]
[403219664,1769269841487,-924.01,0.00013492,2]
[403219665,1769269841497,-500.0,0.00013562,2]
[403219666,1769269841506,-1214.16676602,0.00013598,2]
[403219667,1769269841515,-9770.75467923,0.00013617,2]
[403219668,1769269841524,-500.0,0.00013698,2]
[403219669,1769269841534,-500.0,0.00013698,2]
[403219670,1769269841544,-500.0,0.00013698,2]
[403219671,1769269841554,-500.0,0.00013698,2]
[403219672,1769269841569,-500.0,0.00013698,2]
[403219673,1769269841578,-593.61150569,0.00013698,2]
[403219674,1769269841588,-500.0,0.00013698,2]
[403219675,1769269841597,-500.0,0.00013698,2]
[403219676,1769269841607,-500.0,0.00013698,2]
[403219677,1769269841616,-500.0,0.00013698,2]
[403219678,1769269841625,-500.0,0.00013698,2]
[403219679,1769269841635,-500.0,0.00013698,2]
[403219680,1769269841644,-165.97106181,0.00013698,2]
[403219681,1769269841654,-500.0,0.00013698,2]
[403219682,1769269841663,-500.0,0.00013698,2]
[403219683,1769269841672,-500.0,0.00013698,2]
[403219684,1769269841682,-749.41,0.00013698,2]
[403219685,1769269841691,-749.41,0.00013698,2]
[403219686,1769269841701,-749.41,0.00013698,2]
[403219687,1769269841711,-166.66,0.00013717,2]
[403219688,1769269841721,-924.01,0.00013765,2]
[403219689,1769269841730,-433.0,0.00013796,2]
[403219690,1769269841740,-4840.22232773,0.00013882,2]
[403219691,1769269841750,-166.66,0.00014,2]
[403219692,1769269841759,-2351.0,0.00014003,2]
[403219693,1769269841769,-924.01,0.00014039,2]
[403219694,1769269841779,-854.2589148,0.00014059,2]
[403219695,1769269841788,-250.0,0.00014059,2]
[403219696,1769269841797,-500.0,0.00014059,2]
[403219697,1769269841807,-250.0,0.00014059,2]
[403219698,1769269841816,-500.0,0.00014059,2]
[403219699,1769269841826,-250.0,0.00014059,2]
[403219700,1769269841835,-500.0,0.00014059,2]
[403219701,1769269841845,-250.0,0.00014059,2]
[403219702,1769269841854,-500.0,0.00014059,2]
[403219703,1769269841864,-312.60820425,0.00014059,2]
[403219704,1769269841874,-500.0,0.00014059,2]
[403219705,1769269841883,-500.0,0.00014059,2]
[403219706,1769269841896,-500.0,0.00014059,2]
[403219707,1769269841906,-500.0,0.00014059,2]
[403219708,1769269841915,-500.0,0.00014059,2]
[403219709,1769269841925,-250.0,0.00014059,2]
[403219710,1769269841938,-500.0,0.00014059,2]
[403219711,1769269841948,-250.0,0.00014059,2]
[403219712,1769269841958,-500.0,0.00014059,2]
[403219713,1769269841970,-250.0,0.00014059,2]
[403219714,1769269841980,-174.61919141,0.00014059,2]
[403219715,1769269841990,-250.0,0.00014059,2]
[403219716,1769269841999,-250.0,0.00014059,2]
[403219717,1769269842385,-500.0,0.00014059,2]
[403219718,1769269842408,-500.0,0.00014059,2]
[403219719,1769269842417,-500.0,0.00014059,2]
[403219720,1769269842427,-500.0,0.00014059,2]
[403219721,1769269842436,-500.0,0.00014059,2]
[403219722,1769269842445,-151.0,0.00014059,2]
[403219723,1769269842454,-500.0,0.00014059,2]
[403219724,1769269842464,-500.0,0.00014059,2]
[403219725,1769269842473,-5432.0,0.00014059,2]
[403219726,1769269842482,-500.0,0.00014059,2]
[403219727,1769269842491,-500.0,0.00014059,2]
[403219728,1769269842501,-500.0,0.00014059,2]
[403219729,1769269842510,-500.0,0.00014059,2]
[403219730,1769269842519,-343.10236963,0.00014059,2]
[403219731,1769269842528,-578.20924308,0.00014059,2]
[403219732,1769269842537,-322.6107,0.00014059,2]
[403219733,1769269842547,-151.0,0.00014059,2]
[403219734,1769269842555,-151.0,0.00014059,2]
[403219735,1769269842564,-250.0,0.00014059,2]
[403219736,1769269842574,-250.0,0.00014059,2]
[403219737,1769269842586,-151.0,0.00014059,2]
[403219738,1769269842596,-250.0,0.00014059,2]
[403219739,1769269842605,-151.0,0.00014059,2]
[403219740,1769269842614,-250.0,0.00014059,2]
[403219741,1769269842624,-151.0,0.00014059,2]
[403219742,1769269842633,-500.0,0.00014059,2]
[403219743,1769269842642,-250.0,0.00014059,2]
[403219744,1769269842651,-151.0,0.00014059,2]
[403219745,1769269842660,-500.0,0.00014059,2]
[403219746,1769269842669,-301.96560903,0.00014059,2]
[403219747,1769269842678,-151.0,0.00014059,2]
[403219748,1769269842688,-500.0,0.00014059,2]
[403219749,1769269842697,-151.0,0.00014059,2]
[403219750,1769269842706,-500.0,0.00014059,2]
[403219751,1769269842715,-151.0,0.00014059,2]
[403219752,1769269842724,-500.0,0.00014059,2]
[403219753,1769269842734,-151.0,0.00014059,2]
[403219754,1769269842743,-500.0,0.00014059,2]
[403219755,1769269842752,-151.0,0.00014059,2]
[403219756,1769269842761,-500.0,0.00014059,2]
[403219757,1769269842771,-500.0,0.00014059,2]
[403219758,1769269842780,-233.89856902,0.00014059,2]
[403219759,1769269842789,-500.0,0.00014059,2]
[403219760,1769269842799,-500.0,0.00014059,2]
[403219761,1769269842808,-500.0,0.00014059,2]
[403219762,1769269842818,-150.42,0.00014061,2]
[403219763,1769269842827,-211.23,0.00014061,2]
[403219764,1769269842836,-1841.2,0.00014144,2]
[403219765,1769269842845,-206.58,0.00014155,2]
[403219766,1769269842854,-1852.42,0.00014215,2]
[403219767,1769269842863,-489.86219045,0.00014229,2]
[403219768,1769269842873,-2972.57,0.00014234,2]
[403219769,1769269842883,-200.0,0.00014281,2]
[403219770,1769269842894,-166.66,0.00014283,2]
[403219771,1769269842903,-924.01,0.00014313,2]
[403219772,1769269842912,-9770.75467923,0.00014331,2]
[403219773,1769269842922,-1000.0,0.00014332,2]
[403219774,1769269842932,-1185.90178612,0.00014372,2]
[403219775,1769269842942,-12773.42330268,0.00014382,2]
[403219776,1769269842952,-22533.83278816,0.00014382,2]
[403219778,1769269842961,-33709.26619106,0.00014382,2]
[403219779,1769269842974,-45609.8346,0.00014382,2]
[403219782,1769269842984,-166.66,0.00014565,2]
[403219785,1769269842993,-924.03772844,0.00014587,2]
[403219788,1769269843002,-885.86649465,0.00014607,2]
[403219789,1769269843011,-181.08010149,0.00014607,2]
[403219791,1769269843020,-166.66,0.00014848,2]
[403219793,1769269843029,-9770.75467923,0.00015044,2]
[403219794,1769269843039,-152.0,0.00015114,3]
[403219795,1769269843048,-489.86219045,0.00015146,2]
[403219796,1769269843057,-918.64355495,0.00015155,2]
[403219797,1769269843066,-187.78006525,0.00015155,2]
[403219798,1769269843078,-150.02261735,0.00015158,2]
[403219799,1769269843087,-250.0,0.00015293,2]
[403219800,1769269843097,-301.58,0.0001531,2]
[403219801,1769269843107,-3292.0,0.00015403,2]
[403219802,1769269843116,-334.5472959,0.00015428,2]
[403219803,1769269843126,-4609.96,0.00015494,2]
[403219804,1769269843135,-1214.16676601,0.00015664,2]
[403219805,1769269843144,-952.63336648,0.00015703,2]
[403219806,1769269843154,-194.72792766,0.00015703,2]
[403219807,1769269843164,-9770.75467923,0.00015758,2]
[403219808,1769269843173,-500.0,0.00015872,2]
[403219809,1769269843182,-500.0,0.00015872,2]
[403219810,1769269843191,-500.0,0.00015873,2]
[403219811,1769269843200,-500.0,0.00015873,2]
[403219813,1769269843209,-500.0,0.00015873,2]
[403219814,1769269843221,-500.0,0.00015873,2]
[403219817,1769269843230,-500.0,0.00015873,2]
[403219820,1769269843240,-500.0,0.00015873,2]
[403219822,1769269843248,-505.83466941,0.00015873,2]
[403219824,1769269843257,-500.0,0.00015873,2]
[403219826,1769269843266,-500.0,0.00015873,2]
[403219828,1769269843276,-500.0,0.00015873,2]
[403219830,1769269843285,-500.0,0.00015873,2]
[403219831,1769269843294,-500.0,0.00015873,2]
[403219832,1769269843303,-607.15821099,0.00015873,2]
[403219833,1769269843312,-544.47711737,0.00015873,2]
[403219835,1769269843321,-542.33856448,0.00015873,2]
[403219836,1769269843331,-500.0,0.00015873,2]
[403219837,1769269843340,-500.0,0.00015873,2]
[403219838,1769269843351,-500.0,0.00015873,2]
[403219839,1769269843362,-500.0,0.00015873,2]
[403219840,1769269843371,-500.0,0.00015873,2]
[403219841,1769269843380,-500.0,0.00015873,2]
[403219842,1769269843389,-500.0,0.00015873,2]
[403219843,1769269843399,-500.0,0.00015873,2]
[403219844,1769269843408,-500.0,0.00015873,2]
[403219845,1769269843417,-500.0,0.00015873,2]
[403219846,1769269843426,-500.0,0.00015873,2]
[403219847,1769269843436,-500.0,0.00015873,2]
[403219848,1769269843446,-500.0,0.00015873,2]
[403219849,1769269843456,-500.0,0.00015873,2]
[403219850,1769269843465,-500.0,0.00015873,2]
[403219851,1769269843475,-500.0,0.00015873,2]
[403219852,1769269843484,-500.0,0.00015873,2]
[403219853,1769269843495,-500.0,0.00015873,2]
[403219854,1769269843506,-500.0,0.00015873,2]
[403219855,1769269843517,-239.10627716,0.00015873,2]
[403219856,1769269843527,-303.1127939,0.00015873,2]
[403219857,1769269843537,-152.0,0.00015913,4]
[403219858,1769269843547,-1000.0,0.00015924,2]
[403219859,1769269843558,-150.0,0.00016,2]
[403219860,1769269843567,-4881.0,0.00016,2]
[403219861,1769269843578,-150.0,0.00016,2]
[403219862,1769269843587,-253.570956,0.00016,2]
[403219863,1769269843595,-489.86219045,0.00016064,2]
[403219864,1769269843604,-150.0,0.000161,2]
[403219865,1769269843615,-500.0,0.00016199,2]
[403219866,1769269843624,-500.0,0.00016199,2]
[403219867,1769269843633,-150.0,0.000162,2]
[403219868,1769269843643,-987.88080104,0.00016251,2]
[403219869,1769269843652,-201.93286099,0.00016251,2]
[403219870,1769269843661,-159.59843399,0.00016264,2]
[403219871,1769269843671,-150.0,0.000163,2]
[403219872,1769269843680,-500.0,0.00016328,2]
[403219873,1769269843689,-500.0,0.00016356,2]
[403219874,1769269843699,-500.0,0.00016356,2]
[403219875,1769269843708,-500.0,0.00016383,2]
[403219876,1769269843717,-857.0,0.000164,2]
[403219877,1769269843727,-150.0,0.000164,2]
[403219878,1769269843736,-1003.07183782,0.00016421,2]
[403219879,1769269843745,-1034.24079626,0.00016421,2]
[403219880,1769269843755,-1000.0,0.00016421,2]
[403219881,1769269843765,-1000.0,0.00016421,2]
[403219882,1769269843774,-1000.0,0.00016421,2]
[403219883,1769269843786,-500.0,0.00016421,2]
[403219884,1769269843795,-500.0,0.00016421,2]
[403219885,1769269843804,-500.0,0.00016421,2]
[403219886,1769269843813,-1000.0,0.00016421,2]
[403219887,1769269843822,-1000.0,0.00016421,2]
[403219888,1769269843831,-1000.0,0.00016421,2]
[403219889,1769269843840,-1000.0,0.00016421,2]
[403219890,1769269843849,-1000.0,0.00016421,2]
[403219891,1769269843859,-500.0,0.00016421,2]
[403219892,1769269843867,-1003.96785498,0.00016421,2]
[403219893,1769269843877,-1000.0,0.00016421,2]
[403219894,1769269843886,-1000.0,0.00016421,2]
[403219895,1769269843900,-1000.0,0.00016421,2]
[403219896,1769269843910,-1000.0,0.00016421,2]
[403219897,1769269843919,-1000.0,0.00016421,2]
[403219898,1769269843929,-500.0,0.00016421,2]
[403219899,1769269843939,-375.92645048,0.00016421,2]
[403219900,1769269843948,-507.32533855,0.00016421,2]
[403219901,1769269843958,-1000.0,0.00016421,2]
[403219902,1769269843969,-500.0,0.00016421,2]
[403219903,1769269843978,-500.0,0.00016421,2]
[403219904,1769269843987,-500.0,0.00016421,2]
[403219905,1769269843997,-500.0,0.00016421,2]
[403219906,1769269844006,-848.0638206,0.00016421,2]
[403219907,1769269844016,-500.0,0.00016421,2]
[403219908,1769269844025,-500.0,0.00016437,2]
[403219909,1769269844034,-749.41,0.00016437,2]
[403219910,1769269844044,-572.99013325,0.00016438,2]
[403219911,1769269844054,-300.0,0.00016438,2]
[403219912,1769269844064,-300.0,0.00016438,2]
[403219913,1769269844073,-300.0,0.00016438,2]
[403219914,1769269844082,-300.0,0.00016438,2]
[403219915,1769269844091,-300.0,0.00016438,2]
[403219916,1769269844100,-300.0,0.00016438,2]
[403219917,1769269844110,-300.0,0.00016438,2]
[403219918,1769269844120,-300.0,0.00016438,2]
[403219919,1769269844129,-300.0,0.00016438,2]
[403219920,1769269844138,-380.48629979,0.00016438,2]
[403219921,1769269844147,-226.54581965,0.00016438,2]
[403219922,1769269844156,-957.33,0.00016438,2]
[403219923,1769269844166,-957.33,0.00016438,2]
[403219924,1769269844175,-957.33,0.00016438,2]
[403219925,1769269844184,-957.33,0.00016438,2]
[403219926,1769269844194,-957.33,0.00016438,2]
[403219927,1769269844204,-957.33,0.00016438,2]
[403219928,1769269844213,-957.33,0.00016438,2]
[403219929,1769269844222,-957.33,0.00016438,2]
[403219930,1769269844231,-957.33,0.00016438,2]
[403219931,1769269844241,-957.33,0.00016438,2]
[403219932,1769269844250,-957.33,0.00016438,2]
[403219933,1769269844259,-957.33,0.00016438,2]
[403219934,1769269844268,-957.33,0.00016438,2]
[403219935,1769269844277,-957.33,0.00016438,2]
[403219936,1769269844286,-957.33,0.00016438,2]
[403219937,1769269844295,-957.33,0.00016438,2]
[403219938,1769269844305,-957.33,0.00016438,2]
[403219939,1769269844314,-957.33,0.00016438,2]
[403219940,1769269844323,-957.33,0.00016438,2]
[403219941,1769269844332,-957.33,0.00016438,2]
[403219942,1769269844341,-800.0,0.00016438,2]
[403219943,1769269844350,-151.0,0.00016438,2]
[403219944,1769269844359,-165.27,0.0001644,2]
[403219945,1769269844368,-9770.75467923,0.00016472,2]
[403219946,1769269844378,-500.0,0.00016521,2]
[403219947,1769269844387,-200.0,0.0001656,2]
[403219948,1769269844397,-648.41,0.00016585,2]
[403219949,1769269844407,-2445.0,0.00016621,2]
[403219950,1769269844416,-2445.0,0.00016659,2]
[403219951,1769269844425,-2368.5,0.00016707,2]
[403219952,1769269844434,-152.0,0.00016712,5]
[403219953,1769269844443,-165.2,0.00016712,2]
[403219954,1769269844452,-2445.0,0.00016725,2]
[403219955,1769269844461,-2445.0,0.00016726,2]
[403219956,1769269844471,-346.92554585,0.00016797,2]
[403219957,1769269844480,-5432.0,0.00016798,2]
[403219958,1769269844490,-599.60298507,0.00016798,2]
[403219959,1769269844499,-1024.43239068,0.00016799,2]
[403219960,1769269844508,-209.40437684,0.00016799,2]
[403219961,1769269844517,-2368.5,0.00016825,2]
[403219962,1769269844526,-2445.0,0.00016849,2]
[403219963,1769269844535,-500.0,0.00016849,2]
[403219964,1769269844545,-2445.0,0.00016867,2]
[403219965,1769269844554,-194.93473074,0.00016868,2]
[403219966,1769269844563,-151.0,0.00016941,2]
[403219967,1769269844572,-2368.5,0.00016942,2]
[403219968,1769269844581,-4609.0,0.00016944,2]
[403219969,1769269844591,-1500.0,0.00016968,2]
[403219970,1769269844600,-1606.81558128,0.00016968,2]
[403219971,1769269844609,-573.98879249,0.00016968,2]
[403219972,1769269844618,-1500.0,0.00016968,2]
[403219973,1769269844627,-1500.0,0.00016968,2]
[403219974,1769269844636,-1500.0,0.00016968,2]
[403219975,1769269844645,-1500.0,0.00016968,2]
[403219976,1769269844655,-1500.0,0.00016968,2]
[403219977,1769269844664,-1500.0,0.00016968,2]
[403219978,1769269844673,-1502.72708763,0.00016968,2]
[403219979,1769269844682,-1500.0,0.00016968,2]
[403219980,1769269844691,-1500.0,0.00016968,2]
[403219981,1769269844700,-1500.0,0.00016968,2]
[403219982,1769269844711,-1500.0,0.00016968,2]
[403219983,1769269844720,-489.86219045,0.00016982,2]
[403219984,1769269844731,-500.0,0.00016999,2]
[403219985,1769269844741,-500.0,0.00016999,2]
[403219986,1769269844751,-250.0,0.00017,2]
[403219987,1769269844760,-3207.48934641,0.00017,2]
[403219988,1769269844769,-3648.0,0.00017032,2]
[403219989,1769269844779,-150.42,0.00017041,2]
[403219990,1769269844788,-211.23,0.00017041,2]
[403219991,1769269844797,-156.08,0.00017043,2]
[403219992,1769269844807,-168.0,0.00017055,2]
[403219993,1769269844816,-2368.5,0.0001706,2]
[403219994,1769269844826,-450.79259668,0.00017086,2]
[403219995,1769269844837,-2000.0,0.000171,2]
[403219996,1769269844847,-446.04265821,0.000171,2]
[403219997,1769269844856,-194.93473072,0.00017126,2]
[403219998,1769269844866,-200.0,0.00017138,2]
[403219999,1769269844875,-200.0,0.00017146,2]
[403220000,1769269844884,-2368.5,0.00017177,2]
[403220001,1769269844897,-500.0,0.00017178,2]
[403220002,1769269844906,-500.0,0.00017178,2]
[403220003,1769269844916,-500.0,0.00017178,2]
[403220004,1769269844925,-500.0,0.00017178,2]
[403220005,1769269844935,-500.0,0.00017178,2]
[403220006,1769269844944,-500.0,0.00017178,2]
[403220007,1769269844954,-238.3883883,0.00017178,2]
[403220008,1769269844963,-179.89,0.00017178,2]
[403220009,1769269844972,-403.57,0.00017178,2]
[403220010,1769269844982,-2461.78,0.00017178,2]
[403220011,1769269844991,-150.0,0.00017178,2]
[403220012,1769269845000,-172.14,0.00017178,2]
[403220013,1769269845009,-937.06,0.00017178,2]
[403220014,1769269845018,-1117.3,0.00017178,2]
[403220015,1769269845027,-179.89,0.00017178,2]
[403220016,1769269845036,-172.14,0.00017178,2]
[403220017,1769269845046,-150.0,0.00017178,2]
[403220018,1769269845055,-179.89,0.00017178,2]
[403220019,1769269845063,-172.14,0.00017178,2]
[403220020,1769269845073,-150.0,0.00017178,2]
[403220021,1769269845082,-9770.75467923,0.00017186,2]
[403220022,1769269845091,-450.79259662,0.00017222,2]
[403220023,1769269845100,-500.0,0.0001726,2]
[403220024,1769269845110,-500.0,0.0001726,2]
[403220025,1769269845119,-800.0,0.0001726,2]
[403220026,1769269845128,-800.0,0.0001726,2]
[403220027,1769269845137,-800.0,0.0001726,2]
[403220028,1769269845146,-800.0,0.0001726,2]
[403220029,1769269845156,-800.0,0.0001726,2]
[403220030,1769269845165,-800.0,0.0001726,2]
[403220031,1769269845175,-800.0,0.0001726,2]
[403220032,1769269845184,-800.0,0.0001726,2]
[403220033,1769269845193,-800.0,0.0001726,2]
[403220034,1769269845202,-800.0,0.0001726,2]
[403220035,1769269845213,-800.0,0.0001726,2]
[403220036,1769269845223,-800.0,0.0001726,2]
[403220037,1769269845232,-800.0,0.0001726,2]
[403220038,1769269845241,-800.0,0.0001726,2]
[403220039,1769269845251,-800.0,0.0001726,2]
[403220040,1769269845261,-800.0,0.0001726,2]
[403220041,1769269845271,-800.0,0.0001726,2]
[403220042,1769269845281,-800.0,0.0001726,2]
[403220043,1769269845291,-800.0,0.0001726,2]
[403220044,1769269845301,-800.0,0.0001726,2]
[403220045,1769269845310,-800.0,0.0001726,2]